bitfinex-derivatives/quotes_SOLF0:USTF0_20250321
["timestamp","ask_amount","ask_price","bid_price","bid_amount"]
[1742546090706,28.84,127.82,127.76,28.84]
[1742546090907,0.05054023,127.79,127.76,28.84]
[1742546091411,0.05054023,127.79,127.78,7.8297]
[1742546094013,28.84,127.82,127.8,7.8281]
[1742546094811,36.6673,127.82,127.8,7.8281]
[1742546095011,36.71911719,127.82,127.8,7.88377771]
[1742546095204,0.05181719,127.82,127.81,7.8278]
[1742546099222,0.05181719,127.82,127.81,9.8308]
[1742546100414,260.193,127.89,127.81,2.003]
[1742546100621,28.86,127.87,127.81,2.003]
[1742546101014,28.86,127.87,127.81,9.8305]
[1742546101616,28.86,127.87,127.81,2.003]
[1742546101823,0.05258962,127.85,127.83,0.05377021]
[1742546102120,28.9,127.84,127.83,0.05377021]
[1742546102315,28.9,127.84,127.83,7.88037021]
[1742546102517,0.05258962,127.85,127.83,0.05377021]
[1742546103621,7.826,127.84,127.83,0.05377021]
[1742546105017,7.87828962,127.85,127.83,7.88017021]
[1742546105214,0.05258962,127.85,127.83,0.05377021]
[1742546105726,7.826,127.84,127.83,0.05377021]
[1742546106325,7.87828962,127.85,127.83,0.05377021]
[1742546107326,7.87828962,127.85,127.83,7.88027021]
[1742546110430,7.826,127.84,127.83,0.05377021]
[1742546111027,7.87818962,127.85,127.83,0.05377021]
[1742546111229,0.05258962,127.85,127.83,0.05377021]
[1742546111727,0.05258962,127.85,127.83,7.88007021]
[1742546111931,7.87808962,127.85,127.83,7.88007021]
[1742546112323,7.87808962,127.85,127.83,0.05377021]
[1742546112929,7.87808962,127.85,127.83,7.88027021]
[1742546113124,0.05258962,127.85,127.83,7.88027021]
[1742546114141,7.87818962,127.85,127.83,7.88027021]
[1742546117638,0.05258962,127.85,127.84,7.826]
[1742546118942,294.8234,127.89,127.86,7.8244]
[1742546119141,287.0,127.89,127.86,7.8244]
[1742546119440,297.80053018,127.89,127.86,7.8244]
[1742546119644,7.8236,127.88,127.86,7.8244]
[1742546120140,268.96053018,127.89,127.88,7.8235]
[1742546120333,0.05716265,127.88,127.86,0.05170232]
[1742546120639,0.05716265,127.88,127.87,7.8238]
[1742546123242,36.6015,127.92,127.89,7.8224]
[1742546123441,28.78,127.92,127.89,7.8224]
[1742546123643,28.76,127.92,127.89,7.8224]
[1742546123842,7.8216,127.92,127.9,7.8222]
[1742546124047,36.5816,127.92,127.9,7.8222]
[1742546124246,36.5816,127.92,127.87,2.1665]
[1742546124447,36.63674957,127.92,127.9,0.06006187]
[1742546125144,0.05514957,127.92,127.9,0.06006187]
[1742546125542,0.05514957,127.92,127.91,7.8217]
[1742546126238,51.05652226,127.95,127.93,7.8205]
[1742546126442,43.23692226,127.95,127.93,7.8205]
[1742546126642,43.23692226,127.95,127.9,28.74]
[1742546126848,39.96332226,127.95,127.94,7.8199]
[1742546127144,30.14402226,127.95,127.94,7.8199]
[1742546128549,0.05401574,127.96,127.94,7.8199]
[1742546129353,0.05401574,127.96,127.93,28.79166588]
[1742546130851,7.8195,127.95,127.93,28.79166588]
[1742546131150,0.05401574,127.96,127.93,28.79166588]
[1742546131339,7.87311574,127.96,127.93,28.79166588]
[1742546131544,7.87311574,127.96,127.93,36.61216588]
[1742546132455,7.8193,127.95,127.93,36.61216588]
[1742546132752,0.05401574,127.96,127.93,0.05166588]
[1742546133750,0.05401574,127.96,127.93,2.15136588]
[1742546133947,0.05401574,127.96,127.93,4.28046588]
[1742546134146,0.05401574,127.96,127.94,2.1554]
[1742546134447,28.66,128.01,127.95,28.66]
[1742546134745,7.8166,128.0,127.95,28.66]
[1742546135149,28.66,128.01,127.96,7.8183]
[1742546135344,7.8172,127.99,127.96,7.8183]
[1742546135543,7.8172,127.99,127.97,0.04930338]
[1742546135752,0.0560273,128.0,127.97,0.04930338]
[1742546136051,7.8174,127.98,127.97,0.04930338]
[1742546136550,36.4774,127.98,127.97,0.04930338]
[1742546140357,7.8199,127.94,127.92,28.62]
[1742546140947,7.8199,127.94,127.92,36.4407]
[1742546141355,0.05635765,127.94,127.92,28.6759896]
[1742546142460,0.05635765,127.94,127.93,7.8205]
[1742546143451,0.05635765,127.94,127.93,36.4005]
[1742546146956,5.765e-05,127.94,127.93,36.4005]
[1742546147156,5.765e-05,127.94,127.93,38.4513]
[1742546151960,5.765e-05,127.94,127.93,36.4005]
[1742546152161,5.765e-05,127.94,127.93,7.8205]
[1742546152360,5.765e-05,127.94,127.92,7.8766896]
[1742546152760,5.765e-05,127.94,127.92,0.0559896]
[1742546154158,28.48005765,127.94,127.92,0.0559896]
[1742546154964,36.30045765,127.94,127.92,0.0559896]
[1742546156061,28.48005765,127.94,127.92,0.0559896]
[1742546157360,5.765e-05,127.94,127.92,0.0559896]
[1742546158462,5.765e-05,127.94,127.93,7.8205]
[1742546161166,5.765e-05,127.94,127.93,36.3005]
[1742546163468,5.765e-05,127.94,127.93,44.1205]
[1742546163766,5.765e-05,127.94,127.93,36.3005]
[1742546164965,5.765e-05,127.94,127.93,44.1205]
[1742546167966,32.38862179,128.04,128.03,7.8144]
[1742546168168,7.20782179,128.04,128.03,7.8144]
[1742546168373,69.24233987,128.05,128.02,28.44]
[1742546168568,116.90217712,128.06,128.02,28.44]
[1742546168972,32.43353552,128.08,128.07,7.8119]
[1742546170970,3.552e-05,128.08,128.07,7.8119]
[1742546172174,0.05057758,128.09,128.08,7.8113]
[1742546176881,7.758e-05,128.09,128.08,36.2513]
[1742546182882,7.758e-05,128.09,128.08,44.0513]
[1742546193898,7.758e-05,128.09,128.08,45.47996552]
[1742546194299,6.3671,128.22,128.21,7.8034]
[1742546196608,6.3671,128.22,128.2,7.86114288]
[1742546197113,6.3671,128.22,128.2,0.05744288]
[1742546197405,6.3671,128.22,128.21,7.8034]
[1742546197909,0.04955985,128.23,128.22,7.8028]
[1742546198806,0.04955985,128.23,128.22,36.1628]
[1742546199910,5.985e-05,128.23,128.22,36.1628]
[1742546202416,5.985e-05,128.23,128.22,28.36]
[1742546203819,5.985e-05,128.23,128.22,36.1628]
[1742546204121,5.985e-05,128.23,128.22,7.8028]
[1742546204916,5.985e-05,128.23,128.21,28.32]
[1742546205221,5.985e-05,128.23,128.2,0.05744288]
[1742546205423,5.985e-05,128.23,128.2,36.18114288]
[1742546205915,5.985e-05,128.23,128.2,7.86144288]
[1742546206115,5.985e-05,128.23,128.2,36.18144288]
[1742546207021,5.985e-05,128.23,128.2,28.37744288]
[1742546208723,7.8031,128.22,128.2,0.05744288]
[1742546209318,7.8034,128.21,128.2,0.05744288]
[1742546210222,14.0258,128.22,128.2,0.05744288]
[1742546211525,7.8034,128.21,128.2,0.05744288]
[1742546212619,14.0258,128.22,128.2,0.05744288]
[1742546213432,6.2227,128.22,128.2,0.05744288]
[1742546214323,14.0256,128.22,128.2,0.05744288]
[1742546215133,6.2227,128.22,128.2,7.86144288]
[1742546215327,6.2227,128.22,128.2,0.05744288]
[1742546215632,6.2227,128.22,128.2,7.86144288]
[1742546216332,6.2227,128.22,128.21,7.8034]
[1742546218735,2.1115,128.22,128.21,7.8034]
[1742546219033,5.985e-05,128.23,128.22,7.8028]
[1742546229643,5.985e-05,128.23,128.22,36.0228]
[1742546233351,5.985e-05,128.23,128.22,7.8028]
[1742546233546,5.985e-05,128.23,128.21,7.8032]
[1742546233943,5.985e-05,128.23,128.2,0.05744288]
[1742546234143,6.44985985,128.23,128.2,0.05744288]
[1742546234349,7.8032,128.22,128.2,0.05744288]
[1742546234545,6.44985985,128.23,128.2,0.05744288]
[1742546235551,7.8031,128.22,128.2,0.05744288]
[1742546235854,7.8031,128.22,128.19,7.8043]
[1742546236242,6.44985985,128.23,128.19,7.8043]
[1742546236648,6.44985985,128.23,128.2,7.804]
[1742546237149,7.8028,128.22,128.2,0.05062297]
[1742546238352,28.24,128.21,128.15,285.64]
[1742546238753,28.24,128.21,128.12,1.9698]
[1742546238955,28.24,128.21,128.13,28.26]
[1742546239456,7.8059,128.17,128.16,0.05450444]
[1742546242160,28.31261199,128.18,128.16,0.05450444]
[1742546242367,36.11811199,128.18,128.16,0.05450444]
[1742546243166,28.31261199,128.18,128.16,7.86070444]
[1742546243361,28.31261199,128.18,128.16,0.05450444]
[1742546243863,28.31261199,128.18,128.17,7.8058]
[1742546244054,28.31261199,128.18,128.16,0.05450444]
[1742546244462,28.31261199,128.18,128.16,7.86050444]
[1742546244654,0.05261199,128.18,128.16,0.05450444]
[1742546244855,0.05261199,128.18,128.17,7.8058]
[1742546248562,28.28,128.25,128.16,0.05450444]
[1742546248763,6.2997,128.27,128.15,28.24]
[1742546248963,28.3,128.26,128.24,7.8013]
[1742546249472,28.3,128.26,128.2,28.3]
[1742546249769,28.35126709,128.26,128.24,0.05780803]
[1742546249967,36.15186709,128.26,128.24,0.05780803]
[1742546250271,28.35126709,128.26,128.24,0.05780803]
[1742546250858,7.801,128.25,128.24,0.05780803]
[1742546252770,36.15196709,128.26,128.24,0.05780803]
[1742546252975,28.35126709,128.26,128.24,0.05780803]
[1742546253364,28.35126709,128.26,128.24,7.85900803]
[1742546253871,28.35126709,128.26,128.24,0.05780803]
[1742546254067,28.35126709,128.26,128.25,7.801]
[1742546254765,0.05126709,128.26,128.25,7.801]
[1742546256872,0.05126709,128.26,128.24,7.85890803]
[1742546257170,0.05126709,128.26,128.24,0.05780803]
[1742546258468,0.05126709,128.26,128.25,7.801]
[1742546259373,7.85176709,128.26,128.24,7.85900803]
[1742546260878,7.801,128.25,128.24,0.05780803]
[1742546261983,7.85196709,128.26,128.24,0.05780803]
[1742546262376,0.05126709,128.26,128.24,0.05780803]
[1742546263976,0.05126709,128.26,128.25,7.801]
[1742546281497,28.14,128.3,128.29,7.7985]
[1742546281991,28.14,128.32,128.26,28.14]
[1742546282200,28.14,128.32,128.3,7.7976]
[1742546282794,28.19073443,128.32,128.3,7.85632336]
[1742546283796,35.98753443,128.32,128.3,0.05872336]
[1742546285196,0.05073443,128.32,128.3,7.85662336]
[1742546285407,0.05073443,128.32,128.3,0.05872336]
[1742546286595,7.84753443,128.32,128.3,0.05872336]
[1742546288102,0.05073443,128.32,128.3,0.05872336]
[1742546288699,0.05073443,128.32,128.3,7.85632336]
[1742546288901,7.84753443,128.32,128.3,0.05872336]
[1742546289697,7.7973,128.31,128.3,0.05872336]
[1742546291703,7.84783443,128.32,128.3,0.05872336]
[1742546292203,0.05073443,128.32,128.3,7.85662336]
[1742546292697,7.84763443,128.32,128.3,7.85662336]
[1742546293196,0.05073443,128.32,128.31,7.7973]
[1742546295197,3.443e-05,128.32,128.31,7.7973]
[1742546302710,2.358e-05,128.33,128.32,7.7967]
[1742546302905,2.358e-05,128.33,128.32,35.8167]
[1742546306810,4.909e-05,128.34,128.33,7.7961]
[1742546307711,1.393e-05,128.36,128.33,4.1096]
[1742546308110,1.606e-05,128.37,128.33,4.1096]
[1742546308314,1.606e-05,128.37,128.36,7.7943]
[1742546308503,1.606e-05,128.37,128.36,35.8743]
[1742546309914,14.1020063,128.4,128.36,293.1]
[1742546310112,14.1020063,128.4,128.36,285.3]
[1742546310312,14.1020063,128.4,128.39,7.7925]
[1742546310510,14.1020063,128.4,128.39,35.9125]
[1742546312620,14.1020063,128.4,128.38,7.84218675]
[1742546315122,14.1020063,128.4,128.39,7.7925]
[1742546318525,15.64139121,128.41,128.4,7.7919]
[1742546318721,15.64139121,128.41,128.4,35.8319]
[1742546319323,16.64453253,128.42,128.41,7.7912]
[1742546322726,16.64453253,128.42,128.4,7.7914]
[1742546322928,16.64453253,128.42,128.39,28.02]
[1742546323330,16.64453253,128.42,128.41,7.7912]
[1742546326237,16.64453253,128.42,128.38,0.04948675]
[1742546326833,24.43553253,128.42,128.39,7.7919]
[1742546327025,16.64453253,128.42,128.39,7.7919]
[1742546327220,16.64453253,128.42,128.38,0.04948675]
[1742546327424,24.43553253,128.42,128.39,7.7921]
[1742546328234,24.43553253,128.42,128.4,7.7918]
[1742546328827,24.43553253,128.42,128.39,7.7923]
[1742546329435,24.43553253,128.42,128.4,7.7918]
[1742546330028,16.64453253,128.42,128.4,7.7918]
[1742546330231,16.64453253,128.42,128.41,7.7912]
[1742546332435,16.64453253,128.42,128.41,19.79741575]
[1742546337037,19.15619955,128.43,128.42,7.7906]
[1742546340038,19.8912767,128.44,128.43,7.79]
[1742546340239,19.8912767,128.44,128.43,19.79621575]
[1742546347144,23.52242081,128.45,128.44,7.7894]
[1742546348346,26.92524615,128.47,128.43,39.90621575]
[1742546348535,26.92524615,128.47,128.46,12.00621575]
[1742546349141,27.05471922,128.48,128.47,7.7876]
[1742546352241,61.34967664,128.51,128.46,39.95607582]
[1742546352242,31.70111706,128.5,128.46,39.95607582]
[1742546352436,34.63786503,128.52,128.48,12.00621575]
[1742546352744,34.63786503,128.52,128.51,12.00621575]
[1742546353338,34.63786503,128.52,128.51,19.79141575]
[1742546354447,34.63786503,128.52,128.5,0.0503477]
[1742546354640,34.68667789,128.52,128.49,12.00621575]
[1742546354840,42.47147789,128.52,128.49,12.00621575]
[1742546355346,34.68667789,128.52,128.49,12.00621575]
[1742546355539,7.7852,128.51,128.49,12.00621575]
[1742546355735,7.7852,128.51,128.49,12.05662893]
[1742546357344,7.7858,128.5,128.49,12.05662893]
[1742546358444,9.879,128.51,128.49,12.05662893]
[1742546358745,9.879,128.51,128.49,19.84282893]
[1742546358944,9.879,128.51,128.49,12.05662893]
[1742546359735,7.7858,128.5,128.49,12.05662893]
[1742546359939,2.0935,128.51,128.49,12.05662893]
[1742546360247,2.0935,128.51,128.49,19.84292893]
[1742546360452,9.879,128.51,128.49,19.84292893]
[1742546363349,2.0935,128.51,128.49,19.84292893]
[1742546363945,9.8791,128.51,128.49,12.05662893]
[1742546364651,2.0935,128.51,128.49,19.84292893]
[1742546365455,2.0935,128.51,128.5,7.7858]
[1742546367154,2.0935,128.51,128.49,19.84272893]
[1742546367452,2.0935,128.51,128.49,12.05662893]
[1742546367653,2.0935,128.51,128.5,7.7858]
[1742546369957,38.84797789,128.52,128.51,7.7852]
[1742546370353,46.63257789,128.52,128.49,12.05662893]
[1742546370552,46.63257789,128.52,128.5,7.7855]
[1742546370752,38.84797789,128.52,128.5,7.7855]
[1742546371154,38.84797789,128.52,128.49,12.05662893]
[1742546371760,46.63257789,128.52,128.5,7.7855]
[1742546372460,46.63257789,128.52,128.49,7.83641318]
[1742546372652,46.63257789,128.52,128.49,0.05041318]
[1742546372958,46.63257789,128.52,128.5,7.7855]
[1742546374057,38.84797789,128.52,128.51,7.7852]
[1742546374262,34.68667789,128.52,128.51,7.7852]
[1742546375364,34.68667789,128.52,128.5,12.00621575]
[1742546376060,42.47157789,128.52,128.5,19.79191575]
[1742546379269,7.7852,128.51,128.5,12.00621575]
[1742546379464,34.68667789,128.52,128.5,12.00621575]
[1742546379869,42.47157789,128.52,128.5,19.79201575]
[1742546381362,34.68667789,128.52,128.51,7.7852]
[1742546381759,34.68667789,128.52,128.5,12.00621575]
[1742546382872,2.1726,128.58,128.51,28.36]
[1742546383077,2.1726,128.58,128.55,12.00621575]
[1742546383575,28.46,128.57,128.53,12.00621575]
[1742546383779,7.7826,128.56,128.51,40.36621575]
[1742546384079,7.7826,128.56,128.54,0.05158504]
[1742546385481,7.7828,128.55,128.54,0.05158504]
[1742546385778,12.00621575,128.55,128.51,12.00621575]
[1742546385980,28.42,128.54,128.51,12.00621575]
[1742546386778,28.47158504,128.54,128.51,12.05663275]
[1742546386976,36.25498504,128.54,128.51,12.05663275]
[1742546387878,28.47158504,128.54,128.51,0.050417]
[1742546388374,36.25518504,128.54,128.51,0.050417]
[1742546388583,28.47158504,128.54,128.51,0.050417]
[1742546389282,28.47158504,128.54,128.51,7.835017]
[1742546389481,28.47158504,128.54,128.51,0.050417]
[1742546389682,28.47158504,128.54,128.52,7.7845]
[1742546391077,36.25498504,128.54,128.52,7.7845]
[1742546391276,36.25498504,128.54,128.51,7.835317]
[1742546392886,36.25498504,128.54,128.51,0.050417]
[1742546393089,7.784,128.53,128.51,0.050417]
[1742546393386,28.47158504,128.54,128.51,0.050417]
[1742546393585,36.25538504,128.54,128.51,0.050417]
[1742546395284,7.784,128.53,128.51,0.050417]
[1742546396786,7.784,128.53,128.51,7.835617]
[1742546397089,36.25518504,128.54,128.51,7.835617]
[1742546398392,7.7841,128.53,128.51,7.835617]
[1742546398584,7.7841,128.53,128.51,0.050417]
[1742546398982,7.7846,128.52,128.51,0.050417]
[1742546401197,4.04798504,128.54,128.51,0.050417]
[1742546401385,0.05158504,128.54,128.53,12.00621575]
[1742546401790,0.05158504,128.54,128.51,0.050417]
[1742546401988,12.05780079,128.54,128.51,0.050417]
[1742546402493,12.00621575,128.52,128.51,0.050417]
[1742546402684,40.52621575,128.52,128.51,0.050417]
[1742546402888,48.31081575,128.52,128.51,0.050417]
[1742546403092,40.52621575,128.52,128.51,0.050417]
[1742546404492,28.52,128.52,128.51,0.050417]
[1742546404798,28.52,128.52,128.51,7.835617]
[1742546405790,40.52621575,128.52,128.51,0.050417]
[1742546406790,40.52621575,128.52,128.51,7.835617]
[1742546406995,28.52,128.52,128.51,7.835617]
[1742546407193,0.05158504,128.54,128.51,12.05663275]
[1742546407894,0.05158504,128.54,128.53,7.784]
[1742546408295,0.05158504,128.54,128.51,0.050417]
[1742546408493,2.04888504,128.54,128.51,0.050417]
[1742546408695,7.7841,128.53,128.51,7.835317]
[1742546409597,30.48888504,128.54,128.52,7.7844]
[1742546410094,0.05158504,128.54,128.53,7.784]
[1742546410795,0.05158504,128.54,128.53,19.79021575]
[1742546418399,2.0651,128.59,128.58,7.7809]
[1742546418700,42.44061575,128.6,128.58,7.7809]
[1742546419202,30.4344,128.6,128.57,7.7812]
[1742546419600,30.4344,128.6,128.57,7.83730459]
[1742546419791,7.7807,128.59,128.57,7.83730459]
[1742546420901,50.22071575,128.6,128.58,7.7809]
[1742546421102,28.32,128.6,128.58,7.7809]
[1742546421401,28.32,128.6,128.59,7.7803]
[1742546422298,7.7794,128.61,128.59,7.7803]
[1742546422600,36.0394,128.61,128.59,7.7803]
[1742546422802,36.0394,128.61,128.58,7.7807]
[1742546423602,7.7798,128.6,128.58,7.7807]
[1742546424391,7.7803,128.59,128.57,19.84352034]
[1742546426901,7.7803,128.59,128.57,7.83730459]
[1742546428303,12.00621575,128.61,128.57,0.05610459]
[1742546428505,28.18,128.6,128.57,0.05610459]
[1742546429202,7.7806,128.59,128.57,7.83760459]
[1742546429403,28.18,128.6,128.57,7.83760459]
[1742546429603,28.18,128.6,128.57,0.05610459]
[1742546429804,7.7803,128.59,128.57,7.83760459]
[1742546430006,7.7803,128.59,128.57,0.05610459]
[1742546430206,35.9601,128.6,128.57,0.05610459]
[1742546430407,28.18,128.6,128.57,0.05610459]
[1742546430905,7.7806,128.59,128.57,0.05610459]
[1742546431509,7.7806,128.59,128.57,7.83740459]
[1742546432210,35.9601,128.6,128.57,7.83740459]
[1742546432410,35.9601,128.6,128.58,7.7807]
[1742546432812,28.18,128.6,128.57,0.05610459]
[1742546433109,40.14621575,128.62,128.59,7.78]
[1742546433312,7.7791,128.61,128.59,7.78]
[1742546433811,47.92511575,128.62,128.6,7.7797]
[1742546434211,40.14621575,128.62,128.6,0.04981666]
[1742546434407,7.7797,128.61,128.6,0.04981666]
[1742546435109,19.78591575,128.61,128.6,0.04981666]
[1742546437707,19.78591575,128.61,128.6,1.666e-05]
[1742546447313,47.78591575,128.61,128.6,1.666e-05]
[1742546460935,7.8287,128.62,128.6,1.666e-05]
[1742546461129,27.96,128.61,128.6,7.77951666]
[1742546461433,27.96,128.61,128.6,1.666e-05]
[1742546461634,27.96,128.61,128.6,7.77971666]
[1742546462028,0.0498,128.62,128.6,1.666e-05]
[1742546462233,0.0498,128.62,128.61,7.7791]
[1742546462433,27.9898,128.62,128.61,7.7791]
[1742546463843,0.0498,128.62,128.61,7.7791]
[1742546464143,27.9698,128.62,128.61,7.7791]
[1742546464739,27.9698,128.62,128.6,1.666e-05]
[1742546465041,35.7488,128.62,128.6,1.666e-05]
[1742546465238,27.9698,128.62,128.6,1.666e-05]
[1742546465435,27.9698,128.62,128.6,7.77971666]
[1742546466744,27.9698,128.62,128.61,7.7791]
[1742546467941,27.9698,128.62,128.6,19.78583241]
[1742546468138,27.9698,128.62,128.6,1.666e-05]
[1742546469543,7.7791,128.61,128.6,1.666e-05]
[1742546470852,35.7486,128.62,128.6,7.77971666]
[1742546471053,27.9698,128.62,128.6,1.666e-05]
[1742546471350,35.7487,128.62,128.6,7.77951666]
[1742546472051,7.7791,128.61,128.6,1.666e-05]
[1742546472649,27.9698,128.62,128.6,1.666e-05]
[1742546472842,27.9698,128.62,128.6,7.77971666]
[1742546473349,35.7486,128.62,128.6,1.666e-05]
[1742546473549,35.7486,128.62,128.6,7.77961666]
[1742546474043,27.9698,128.62,128.6,7.77961666]
[1742546474245,27.9698,128.62,128.61,7.7791]
[1742546474443,27.9698,128.62,128.6,1.666e-05]
[1742546474638,27.9698,128.62,128.6,7.77921666]
[1742546474839,27.9698,128.62,128.6,1.666e-05]
[1742546475752,27.9698,128.62,128.61,7.7791]
[1742546476251,27.9698,128.62,128.61,19.78531575]
[1742546476746,0.0498,128.62,128.61,19.78531575]
[1742546482157,27.86,128.65,128.64,7.7773]
[1742546482352,27.86,128.65,128.63,12.00621575]
[1742546482751,27.86,128.65,128.62,12.00621575]
[1742546482953,7.7791,128.61,128.59,12.00621575]
[1742546483353,7.7791,128.61,128.59,12.05925676]
[1742546483555,27.84,128.62,128.59,12.05925676]
[1742546484252,35.6191,128.62,128.59,19.83925676]
[1742546484456,35.6191,128.62,128.59,12.05925676]
[1742546485459,35.6191,128.62,128.59,19.83915676]
[1742546486358,35.6191,128.62,128.6,7.7797]
[1742546487962,27.84,128.62,128.61,7.7791]
[1742546488163,27.84,128.62,128.61,19.78531575]
[1742546488364,27.84,128.64,128.61,12.00621575]
[1742546488753,27.84,128.64,128.61,12.06088268]
[1742546488958,35.6177,128.64,128.62,7.7782]
[1742546490362,7.7777,128.64,128.62,7.7782]
[1742546490666,35.6377,128.64,128.62,7.7782]
[1742546491757,7.7779,128.63,128.61,19.83968268]
[1742546491957,7.7779,128.63,128.61,7.83346693]
[1742546492869,7.7785,128.62,128.61,0.05466693]
[1742546493071,12.00621575,128.65,128.61,0.05466693]
[1742546493370,7.7782,128.63,128.61,7.83356693]
[1742546494969,27.84,128.64,128.61,0.05466693]
[1742546496365,7.7782,128.63,128.61,7.83356693]
[1742546499474,7.7782,128.63,128.61,157.83356693]
[1742546499771,35.6176,128.64,128.62,7.7785]
[1742546501077,27.84,128.66,128.61,150.05466693]
[1742546501370,12.00621575,128.66,128.61,162.00621575]
[1742546501570,12.00621575,128.64,128.62,0.05077009]
[1742546501778,35.6179,128.63,128.62,0.05077009]
[1742546504872,47.62411575,128.63,128.62,0.05077009]
[1742546505764,47.62411575,128.63,128.62,150.05077009]
[1742546505967,27.84,128.63,128.62,150.05077009]
[1742546506679,7.7777,128.64,128.62,157.82907009]
[1742546506976,27.84,128.63,128.62,157.82907009]
[1742546507170,27.84,128.63,128.62,150.05077009]
[1742546507372,35.6179,128.63,128.62,150.05077009]
[1742546509472,47.62411575,128.63,128.62,150.05077009]
[1742546510579,27.84,128.63,128.62,150.05077009]
[1742546510771,27.84,128.63,128.62,157.82927009]
[1742546511077,27.84,128.63,128.62,150.05077009]
[1742546511983,35.6179,128.63,128.62,150.05077009]
[1742546512176,27.84,128.63,128.62,157.82927009]
[1742546513676,27.84,128.63,128.62,150.05077009]
[1742546514081,35.6179,128.63,128.62,150.05077009]
[1742546514483,27.84,128.63,128.62,150.05077009]
[1742546515571,35.6179,128.63,128.62,150.05077009]
[1742546519781,27.84,128.63,128.62,150.05077009]
[1742546520276,35.6179,128.63,128.62,150.05077009]
[1742546522697,47.62411575,128.63,128.62,150.05077009]
[1742546530993,47.62411575,128.63,128.62,82.32968675]
[1742546531388,47.62411575,128.63,128.62,46.27858675]
[1742546531592,47.62411575,128.63,128.62,34.07138675]
[1742546531895,47.62411575,128.63,128.62,9.19898675]
[1742546532403,87.78467542,128.63,128.51,10.73365995]
[1742546532588,12.00621575,128.55,128.51,10.73365995]
[1742546532794,35.6236,128.54,128.5,62.72635555]
[1742546533194,27.84,128.54,128.52,12.00621575]
[1742546533597,27.89708866,128.54,128.52,12.05919845]
[1742546533998,35.68048866,128.54,128.52,12.05919845]
[1742546534204,35.68048866,128.54,128.52,0.0529827]
[1742546534905,27.89708866,128.54,128.52,0.0529827]
[1742546535800,0.05708866,128.54,128.52,0.0529827]
[1742546536006,27.84,128.53,128.52,0.0529827]
[1742546537608,35.624,128.53,128.52,0.0529827]
[1742546538507,7.7862,128.5,128.46,12.00621575]
[1742546538710,27.86,128.49,128.46,19.79401575]
[1742546539208,35.6465,128.49,128.46,12.00621575]
[1742546539807,35.69665764,128.49,128.46,0.05488445]
[1742546540397,27.91015764,128.49,128.46,0.05488445]
[1742546540601,27.91015764,128.49,128.46,7.84278445]
[1742546540810,27.91015764,128.49,128.46,0.05488445]
[1742546541201,27.91015764,128.49,128.47,7.7876]
[1742546541611,27.91015764,128.49,128.46,12.0611002]
[1742546541909,27.91015764,128.49,128.48,7.787]
[1742546543208,0.05015764,128.49,128.48,19.79321575]
[1742546543406,0.05015764,128.49,128.48,7.787]
[1742546544909,27.91015764,128.49,128.48,7.787]
[1742546545806,27.91015764,128.49,128.46,0.05488445]
[1742546546001,39.91637339,128.49,128.46,0.05488445]
[1742546546910,47.70317339,128.49,128.46,7.84278445]
[1742546547411,7.7871,128.48,128.46,0.05488445]
[1742546547807,12.00621575,128.47,128.46,0.05488445]
[1742546548810,19.79381575,128.47,128.46,0.05488445]
[1742546552011,12.00621575,128.47,128.46,0.05488445]
[1742546554714,19.79381575,128.47,128.46,0.05488445]
[1742546561618,12.00621575,128.47,128.46,0.05488445]
[1742546562725,19.79381575,128.47,128.46,0.05488445]
[1742546575029,7.7906,128.43,128.39,16.17191575]
[1742546575330,27.88,128.42,128.39,14.14071575]
[1742546575529,35.6709,128.42,128.39,14.14071575]
[1742546575932,35.6709,128.42,128.39,21.93281575]
[1742546576125,35.72140801,128.42,128.39,21.98737277]
[1742546576832,35.72140801,128.42,128.4,7.7918]
[1742546577333,27.93050801,128.42,128.4,7.7918]
[1742546578029,27.93050801,128.42,128.41,7.7912]
[1742546579236,27.93050801,128.42,128.4,7.7916]
[1742546580825,27.93050801,128.42,128.41,7.7912]
[1742546584138,35.72110801,128.42,128.41,7.7912]
[1742546584636,27.93050801,128.42,128.41,7.7912]
[1742546590240,39.93672376,128.42,128.39,0.05455702]
[1742546590442,12.00621575,128.4,128.39,0.05455702]
[1742546590642,19.79811575,128.4,128.39,0.05455702]
[1742546590936,7.7919,128.4,128.39,0.05455702]
[1742546591142,39.93672376,128.42,128.39,0.05455702]
[1742546591347,47.72782376,128.42,128.39,0.05455702]